fUST/lending_fUST_20260302
["ID","MTS","AMOUNT","RATE_DAILY","PERIOD"]
[406971700,1772383840320,-500.0,0.00014447,2]
[406971703,1772383840330,-306.59425371,0.0001452,2]
[406971705,1772383840340,-587.0,0.00014578,2]
[406971707,1772383840350,-703.12088913,0.00014703,2]
[406971709,1772383840359,-183.26067836,0.00014795,2]
[406971711,1772383840371,-1500.0,0.00014795,2]
[406971713,1772383840380,-500.0,0.00014795,2]
[406971715,1772383840390,-1500.0,0.00014795,2]
[406971716,1772383840399,-1500.0,0.00014795,2]
[406971717,1772383840409,-1500.0,0.00014795,2]
[406971718,1772383840419,-970.18972754,0.00014795,2]
[406971719,1772383840428,-2000.0,0.00014916,2]
[406971720,1772383840438,-2000.0,0.00014916,2]
[406971721,1772383840447,-1902.06634725,0.00015068,13]
[406971722,1772383840456,-1328.66889498,0.000153,2]
[406971723,1772383840466,-2000.0,0.00015342,2]
[406971724,1772383840480,-2000.0,0.00015342,2]
[406971725,1772383840490,-2000.0,0.00015342,2]
[406971726,1772383840503,-2000.0,0.00015342,2]
[406971727,1772383840513,-2000.0,0.000154,2]
[406971728,1772383840523,-2500.0,0.00015464,2]
[406971729,1772383840533,-2500.0,0.00015464,2]
[406971730,1772383840543,-2000.0,0.000155,2]
[406971731,1772383840554,-2260.80579975,0.00015563,2]
[406971732,1772383840564,-2000.0,0.000156,2]
[406971733,1772383840574,-1095.16,0.000156,2]
[406971734,1772383840584,-2000.0,0.000157,2]
[406971735,1772383840593,-2000.0,0.000157,2]
[406971736,1772383840603,-11020.34977656,0.000158,2]
[406971737,1772383840614,-703.12088913,0.0001581,2]
[406971738,1772383840624,-2500.0,0.0001589,2]
[406971739,1772383840633,-754.77741102,0.0001589,2]
[406971740,1772383840643,-2500.0,0.0001589,2]
[406971741,1772383840652,-781.23215482,0.0001589,2]
[406971742,1772383840662,-259.29,0.00016,2]
[406971743,1772383840674,-271.85672027,0.00016,2]
[406971744,1772383840684,-823.0,0.00016002,2]
[406971745,1772383840694,-2277.58201077,0.00016012,2]
[406971746,1772383840703,-2308.35087973,0.00016012,2]
[406971747,1772383840713,-231.0,0.00016125,2]
[406971748,1772383840723,-150.0,0.00016438,2]
[406971749,1772383840733,-165.35720373,0.00016438,2]
[406971750,1772383840746,-3000.0,0.00016438,2]
[406971751,1772383840757,-3000.0,0.00016438,2]
[406971752,1772383840767,-1911.58575781,0.0001685,2]
[406971753,1772383840777,-703.12088913,0.00016918,2]
[406971754,1772383840787,-304.59,0.00016955,3]
[406971755,1772383840797,-609.17,0.00016965,3]
[406971756,1772383840808,-456.91,0.00016965,3]
[406971757,1772383840818,-1218.34,0.00016975,3]
[406971758,1772383840831,-250.0,0.00016986,2]
[406971759,1772383840840,-505.77185677,0.00016986,2]
[406971761,1772383840850,-3500.0,0.00016986,2]
[406971762,1772383840860,-2260.80579975,0.00017528,2]
[406971763,1772383840869,-152.29,0.0001798,3]
[406971764,1772383840879,-5000.0,0.00017989,2]
[406971765,1772383840888,-30214.942477,0.0001799,2]
[406971766,1772383840898,-703.12088913,0.00018025,2]
[406971767,1772383840908,-202.60296251,0.00018125,2]
[406971768,1772383840917,-609.18,0.00018325,3]
[406971769,1772383840927,-1218.34,0.00018335,3]
[406971770,1772383840937,-2436.68,0.00018345,3]
[406971771,1772383840947,-716.0,0.000184,2]
[406971772,1772383840957,-716.0,0.0001872,2]
[406971773,1772383840967,-403.0,0.0001872,2]
[406971774,1772383840977,-151.0,0.000188,2]
[406971775,1772383840987,-430.0,0.00018863,2]
[406971776,1772383841000,-729.0,0.00018863,2]
[406971778,1772383841010,-1390.771,0.00018863,2]
[406971779,1772383841020,-2195.347,0.00018863,2]
[406971780,1772383841029,-637.0,0.00018863,2]
[406971781,1772383841039,-153.735,0.00018863,2]
[406971782,1772383841049,-151.208,0.00018863,2]
[406971784,1772383841059,-500.0,0.00018886,2]
[406971785,1772383841069,-500.0,0.00018886,2]
[406971786,1772383841079,-6661.78173137,0.00018886,2]
[406971787,1772383841089,-585.27014751,0.00018886,2]
[406971788,1772383841098,-661.0,0.00018891,2]
[406971789,1772383841108,-20430.2368672,0.000189,2]
[406971790,1772383841117,-500.0,0.00018983,2]
[406971791,1772383841127,-500.0,0.00018983,2]
[406971792,1772383841136,-500.0,0.00018983,2]
[406971793,1772383841146,-250.0,0.00018983,2]
[406971794,1772383841155,-151.0,0.00018983,2]
[406971795,1772383841167,-250.0,0.00018983,2]
[406971796,1772383841177,-151.0,0.00018983,2]
[406971797,1772383841187,-500.0,0.00018983,2]
[406971798,1772383841196,-187.78006525,0.00018983,2]
[406971799,1772383841205,-502.56984192,0.00018983,2]
[406971800,1772383841215,-250.0,0.00018983,2]
[406971801,1772383841224,-151.0,0.00018983,2]
[406971802,1772383841234,-500.0,0.00018983,2]
[406971803,1772383841245,-194.72792766,0.00018983,2]
[406971804,1772383841255,-250.0,0.00018983,2]
[406971805,1772383841265,-151.0,0.00018983,2]
[406971806,1772383841276,-500.0,0.00018983,2]
[406971807,1772383841285,-201.93286099,0.00018983,2]
[406971808,1772383841297,-250.0,0.00018983,2]
[406971809,1772383841307,-183.37734517,0.00018983,2]
[406971810,1772383841317,-500.0,0.00018983,2]
[406971811,1772383841327,-209.40437684,0.00018983,2]
[406971812,1772383841336,-250.0,0.00018983,2]
[406971813,1772383841346,-250.0,0.00018983,2]
[406971814,1772383841357,-217.15233878,0.00018983,2]
[406971815,1772383841367,-250.0,0.00018983,2]
[406971816,1772383841377,-225.18697532,0.00018983,2]
[406971817,1772383841387,-250.0,0.00018983,2]
[406971818,1772383841396,-233.51889341,0.00018983,2]
[406971819,1772383841405,-250.0,0.00018983,2]
[406971820,1772383841415,-242.15909246,0.00018983,2]
[406971821,1772383841424,-251.11897888,0.00018983,2]
[406971822,1772383841434,-260.4103811,0.00018983,2]
[406971823,1772383841443,-270.0455652,0.00018983,2]
[406971824,1772383841453,-250.0,0.00018983,2]
[406971825,1772383841463,-280.03725112,0.00018983,2]
[406971826,1772383841473,-290.39862941,0.00018983,2]
[406971827,1772383841482,-2487.15318209,0.00018983,2]
[406971828,1772383841493,-301.1433787,0.00018983,2]
[406971829,1772383841506,-151.0,0.00018983,2]
[406971830,1772383841515,-250.0,0.00018983,2]
[406971831,1772383841525,-170.07839991,0.00018983,2]
[406971832,1772383841534,-250.0,0.00018983,2]
[406971833,1772383841543,-500.0,0.00018983,2]
[406971834,1772383841553,-500.0,0.00018983,2]
[406971835,1772383841562,-500.0,0.00018983,2]
[406971836,1772383841572,-500.0,0.00018983,2]
[406971837,1772383841581,-500.0,0.00018983,2]
[406971838,1772383841591,-500.0,0.00018983,2]
[406971839,1772383841600,-500.0,0.00018983,2]
[406971840,1772383841610,-500.0,0.00018983,2]
[406971841,1772383841619,-500.0,0.00018983,2]
[406971842,1772383841629,-500.0,0.00018983,2]
[406971843,1772383841639,-500.0,0.00018983,2]
[406971844,1772383841648,-403.2180312,0.00018983,2]
[406971845,1772383841659,-250.0,0.00018983,2]
[406971846,1772383841668,-500.0,0.00018986,5]
[406971847,1772383841677,-151.0,0.0001899,2]
[406971848,1772383841687,-151.0,0.00019,2]
[406971849,1772383841696,-500.0,0.0001912,30]
[406971850,1772383841706,-500.0,0.0001912,30]
[406971851,1772383841715,-500.0,0.0001912,30]
[406971852,1772383841724,-501.09702275,0.0001912,30]
[406971853,1772383841734,-168.0,0.00019123,2]
[406971854,1772383841745,-151.0,0.000192,2]
[406971855,1772383841755,-196.0612856,0.0001931,2]
[406971856,1772383841764,-589.0,0.0001932,2]
[406971857,1772383841774,-304.58,0.0001935,3]
[406971858,1772383841783,-151.0,0.000194,2]
[406971859,1772383841793,-776.0,0.00019474,2]
[406971860,1772383841802,-2260.80579975,0.00019493,2]
[406971861,1772383841812,-259.945,0.00019502,2]
[406971862,1772383841822,-744.97886799,0.00019521,2]
[406971863,1772383841842,-2579.17784983,0.00019531,2]
[406971864,1772383841853,-818.09930944,0.000196,2]
[406971865,1772383841863,-151.0,0.000196,2]
[406971866,1772383841873,-151.0,0.000196,2]
[406971867,1772383841884,-500.0,0.00019613,2]
[406971868,1772383841894,-500.0,0.00019614,2]
[406971869,1772383841905,-403.0,0.0001968,2]
[406971870,1772383841915,-241.40127307,0.00019691,2]
[406971871,1772383841925,-181.99886624,0.00019691,2]
[406971872,1772383841935,-776.0,0.0001972,2]
[406971873,1772383841945,-800.0,0.00019798,2]
[406971874,1772383841955,-127752.16940204,0.000198,2]
[406971875,1772383842381,-188582.48395661,0.000198,2]
[406971876,1772383842391,-151.0,0.000198,2]
[406971877,1772383842401,-151.0,0.000198,2]
[406971878,1772383842410,-298.287504,0.000198,2]
[406971879,1772383842419,-151.0,0.000198,2]
[406971880,1772383842428,-151.0,0.000198,2]
[406971881,1772383842438,-151.0,0.000198,2]
[406971882,1772383842448,-151.0,0.000198,2]
[406971883,1772383842457,-151.0,0.000198,2]
[406971884,1772383842466,-249.29798,0.000198,2]
[406971885,1772383842476,-1111.915101,0.000198,2]
[406971886,1772383842486,-1111.915101,0.000198,2]
[406971887,1772383842501,-1111.915101,0.000198,2]
[406971888,1772383842511,-1111.915101,0.000198,2]
[406971889,1772383842520,-963.15848913,0.000198,2]
[406971890,1772383842529,-487.0,0.000198,2]
[406971891,1772383842543,-487.0,0.000198,2]
[406971892,1772383842552,-487.0,0.000198,2]
[406971893,1772383842562,-487.0,0.000198,2]
[406971894,1772383842571,-487.0,0.000198,2]
[406971895,1772383842581,-487.0,0.000198,2]
[406971896,1772383842591,-487.0,0.000198,2]
[406971897,1772383842600,-487.0,0.000198,2]
[406971898,1772383842610,-487.0,0.000198,2]
[406971899,1772383842620,-487.0,0.000198,2]
[406971900,1772383842629,-487.0,0.000198,2]
[406971901,1772383842639,-487.0,0.000198,2]
[406971902,1772383842649,-487.0,0.000198,2]
[406971903,1772383842658,-487.0,0.000198,2]
[406971904,1772383842667,-487.0,0.000198,2]
[406971905,1772383842677,-487.0,0.000198,2]
[406971906,1772383842687,-487.0,0.000198,2]
[406971907,1772383842697,-487.0,0.000198,2]
[406971908,1772383842706,-487.0,0.000198,2]
[406971909,1772383842715,-487.0,0.000198,2]
[406971910,1772383842724,-487.0,0.000198,2]
[406971911,1772383842733,-487.0,0.000198,2]
[406971912,1772383842742,-487.0,0.000198,2]
[406971913,1772383842754,-487.0,0.000198,2]
[406971914,1772383842763,-744.3,0.000198,2]
[406971915,1772383842772,-168.0,0.00019869,2]
[406971916,1772383842782,-3147.11036907,0.00019879,2]
[406971917,1772383842791,-776.0,0.00019879,2]
[406971918,1772383842801,-6661.64056365,0.000199,2]
[406971919,1772383842810,-1473.5425368,0.00019939,2]
[406971920,1772383842819,-3490.4213371,0.00019939,2]
[406971921,1772383842829,-516.0,0.00019945,5]
[406971922,1772383842838,-600.0,0.00019945,5]
[406971923,1772383842848,-214.12783184,0.00019961,2]
[406971924,1772383842858,-385.4300973,0.00019961,2]
[406971925,1772383842867,-685.20906187,0.00019961,2]
[406971926,1772383842877,-1070.63915918,0.00019961,2]
[406971927,1772383842887,-1541.72038922,0.00019961,2]
[406971928,1772383842897,-376.53480626,0.00019961,2]
[406971929,1772383842907,-677.76265126,0.00019961,2]
[406971930,1772383842917,-1204.91138002,0.00019961,2]
[406971931,1772383842927,-1882.67403128,0.00019961,2]
[406971932,1772383842937,-2711.05060504,0.00019961,2]
[406971933,1772383842946,-3690.0411013,0.00019961,2]
[406971934,1772383842956,-4819.64552007,0.00019961,2]
[406971935,1772383842966,-2098.45275199,0.00019961,2]
[406971936,1772383842975,-1092.69658915,0.00019965,2]
[406971937,1772383842985,-71578.4621745,0.00019967,2]
[406971938,1772383842995,-151.0,0.00019967,2]
[406971939,1772383843008,-187.609683,0.00019967,2]
[406971940,1772383843018,-151.0,0.00019967,2]
[406971941,1772383843027,-249.74390281,0.00019967,2]
[406971943,1772383843037,-151.0,0.00019967,2]
[406971944,1772383843046,-1111.915101,0.00019967,2]
[406971945,1772383843055,-1111.915101,0.00019967,2]
[406971954,1772383843299,-1111.915101,0.00019967,2]
[406971956,1772383843310,-1111.915101,0.00019967,2]
[406971957,1772383843319,-152.584626,0.00019988,2]
[406971958,1772383843331,-500.0,0.00019989,2]
[406971959,1772383843341,-500.0,0.0001999,2]
[406971960,1772383843351,-100000.0,0.0001999,2]
[406971961,1772383843363,-151.0,0.0001999,2]
[406971962,1772383843374,-151.0,0.0001999,2]
[406971963,1772383843383,-1111.915101,0.0001999,2]
[406971964,1772383843393,-1111.915101,0.0001999,2]
[406971965,1772383843409,-1111.915101,0.0001999,2]
[406971967,1772383843421,-1111.915101,0.0001999,2]
[406971969,1772383843432,-500.0,0.00019998,2]
[406971970,1772383843442,-500.0,0.00019999,2]
[406971971,1772383843454,-500.0,0.00019999,2]
[406971972,1772383843466,-500.0,0.00019999,2]
[406971974,1772383843477,-500.0,0.00019999,2]
[406971975,1772383843490,-500.0,0.00019999,2]
[406971976,1772383843512,-318.54906608,0.00019999,2]
[406971977,1772383843528,-119233.48449714,0.0002,2]
[406971978,1772383843539,-180.0,0.0002,3]
[406971979,1772383843551,-1200.0,0.0002,5]
[406971980,1772383843562,-155.84417696,0.0002,2]
[406971981,1772383843574,-1000.0,0.0002,2]
[406971982,1772383843586,-151.0,0.0002,2]
[406971983,1772383843597,-148470.64389203,0.0002,7]
[406971984,1772383843607,-226399.97,0.0002,2]
[406971985,1772383843617,-614.7006517,0.0002,7]
[406971986,1772383843628,-3000.0,0.0002,2]
[406971987,1772383843639,-141453.05279246,0.0002,2]
[406971988,1772383843650,-304313.54509379,0.0002,2]
[406971989,1772383843659,-151.0,0.0002,2]
[406971990,1772383843669,-250.0,0.0002,10]
[406971991,1772383843679,-151.0,0.0002,2]
[406971992,1772383843689,-151.0,0.0002,2]
[406971993,1772383843698,-151.0,0.0002,2]
[406971994,1772383843708,-151.0,0.0002,2]
[406971995,1772383843719,-1111.915101,0.0002,2]
[406971996,1772383843728,-1111.915101,0.0002,2]
[406971997,1772383843737,-1111.915101,0.0002,2]
[406971998,1772383843755,-1111.915101,0.0002,2]
[406971999,1772383843765,-1111.915101,0.0002,2]
[406972000,1772383843774,-1111.915101,0.0002,2]
[406972001,1772383843784,-1111.915101,0.0002,2]
[406972002,1772383843794,-1111.915106,0.0002,2]
[406972004,1772383843805,-2000.0,0.0002,7]
[406972006,1772383843814,-776.0,0.00020026,2]
[406972008,1772383843824,-406.00859894,0.00020048,46]
[406972009,1772383843833,-381.84430354,0.00020079,2]
[406972010,1772383843843,-776.0,0.00020088,2]
[406972011,1772383843852,-189.072574,0.00020093,2]
[406972012,1772383843861,-2740.8362475,0.00020097,2]
[406972013,1772383843870,-250.0,0.000201,10]
[406972014,1772383843880,-776.0,0.00020122,2]
[406972015,1772383843890,-1135.57,0.0002018,2]
[406972016,1772383843900,-250.0,0.000202,10]
[406972017,1772383843909,-524.53506151,0.00020215,10]
[406972018,1772383843919,-168.0,0.00020222,2]
[406972019,1772383843929,-168.0,0.00020231,2]
[406972020,1772383843938,-776.0,0.00020246,2]
[406972021,1772383843948,-168.0,0.00020273,2]
[406972022,1772383843957,-776.0,0.0002028,2]
[406972023,1772383843966,-6093.76399748,0.00020292,2]
[406972024,1772383843976,-1270.33483679,0.00020298,2]
[406972025,1772383843986,-250.0,0.000203,10]
[406972026,1772383844000,-168.0,0.00020303,2]
[406972027,1772383844010,-205.0,0.00020355,2]
[406972028,1772383844020,-600.0,0.00020399,2]
[406972029,1772383844029,-776.0,0.00020399,2]
[406972030,1772383844039,-776.0,0.00020399,2]
[406972031,1772383844048,-250.0,0.000204,10]
[406972032,1772383844058,-406.00859894,0.00020402,50]
[406972033,1772383844069,-1135.57,0.0002045,2]
[406972034,1772383844079,-776.0,0.00020471,2]
[406972035,1772383844088,-168.0,0.00020494,2]
[406972036,1772383844099,-343.440734,0.000205,10]
[406972037,1772383844110,-168.0,0.00020522,2]
[406972038,1772383844120,-524.53506151,0.0002055,11]
[406972039,1772383844130,-3468.87087574,0.00020645,2]
[406972040,1772383844139,-1019.0,0.0002066,7]
[406972041,1772383844148,-1346.39739037,0.0002066,7]
[406972042,1772383844161,-1135.57,0.0002072,2]
[406972043,1772383844170,-406.00859894,0.00020756,54]
[406972044,1772383844180,-168.0,0.00020823,2]
[406972045,1772383844189,-168.0,0.00020823,2]
[406972046,1772383844199,-1118.46,0.0002083,2]
[406972047,1772383844209,-524.53506151,0.00020886,12]
[406972048,1772383844218,-1000.0,0.000209,2]
[406972049,1772383844228,-195.963794,0.00020928,2]
[406972050,1772383844238,-168.0,0.0002094,2]
[406972051,1772383844252,-1135.57,0.0002099,2]
[406972052,1772383844262,-3000.0,0.00021,2]
[406972053,1772383844274,-3000.0,0.0002101,2]
[406972054,1772383844284,-776.0,0.00021016,2]
[406972055,1772383844294,-3000.0,0.0002102,2]
[406972056,1772383844304,-3000.0,0.0002103,2]
[406972057,1772383844315,-500.0,0.00021039,2]
[406972058,1772383844326,-500.0,0.00021039,2]
[406972059,1772383844337,-3000.0,0.0002104,2]
[406972060,1772383844348,-500.0,0.00021049,2]
[406972061,1772383844358,-3000.0,0.0002105,2]
[406972062,1772383844368,-5605.798697,0.0002106,2]
[406972063,1772383844377,-1136.3587445,0.00021061,2]
[406972064,1772383844387,-406.00859894,0.0002111,57]
[406972065,1772383844396,-4282.55663672,0.00021192,2]
[406972066,1772383844406,-1229.20918573,0.00021208,2]
[406972067,1772383844415,-524.53506151,0.00021222,14]
[406972068,1772383844425,-1135.57,0.0002126,2]
[406972069,1772383844435,-7293.11382724,0.000213,2]
[406972070,1772383844647,-250.0,0.00018983,2]
[406972071,1772383844656,-180.2784889,0.00018983,2]
[406972072,1772383844668,-69.7215111,0.00018983,2]
[406972073,1772383844677,-560.0,0.00019955,5]
[406972074,1772383844687,-473.0,0.00019955,5]
[406972075,1772383844696,-403.25551649,0.0002,2]
[406972076,1772383844708,-596.74448351,0.0002,2]
[406972077,1772383844717,-3248.40750138,0.000213,2]
[406972078,1772383844729,-6013.60974999,0.000213,2]
[406972084,1772383846789,-301.7671964,0.00021,10]
[406972086,1772384367652,436.1,0.0001,2]
[406972088,1772384403112,168.54,9.5e-05,2]
[406972089,1772384403488,168.54,9.7e-05,2]
[406972090,1772384403861,168.54,0.0001,2]
[406972091,1772384443312,-168.54,0.000102,2]
[406972092,1772384443341,-168.54,0.000105,2]
[406972093,1772384443367,-572.0,0.000108,2]
[406972094,1772384443395,-500.0,0.000108,2]
[406972095,1772384460092,-150.0,0.00012036,2]
[406972096,1772384460121,-300.0,0.00013272,2]
[406972097,1772384460151,-1200.0,0.00013272,2]
[406972098,1772384460172,-150.0,0.00013273,2]
[406972099,1772384460184,-300.0,0.00013273,2]
[406972100,1772384460195,-50.0,0.00013273,2]
[406972101,1772384460205,-500.0,0.00013273,2]
[406972102,1772384460214,-500.0,0.00013273,2]
[406972103,1772384460224,-150.0,0.00013273,2]
[406972104,1772384460236,-350.0,0.00013273,2]
[406972105,1772384460247,-1.78219241,0.00013273,2]
[406972107,1772384489468,-498.21780759,0.00013273,2]
[406972108,1772384489496,-112.64438482,0.00013673,2]
[406972109,1772384489509,-187.35561518,0.00013673,2]
[406972110,1772384489519,-300.0,0.00013698,2]
[406972111,1772384489528,-10.86219241,0.00013699,2]
[406972112,1772384489542,-300.0,0.00013699,2]
[406972159,1772385031640,-1260.07423446,0.00012594,2]
[406972160,1772385031650,-598.0,0.00012594,2]
[406972161,1772385031661,-150.0,0.00012685,2]
[406972162,1772385031670,-1451.72828418,0.00012776,2]
[406972175,1772385037623,-266.4721089,0.00012776,2]
[406972176,1772385037632,-170.27365895,0.00012776,2]
[406972177,1772385037641,-376.5556878,0.0001285,2]
[406972178,1772385037649,-500.0,0.00013273,2]
[406972179,1772385037658,-317.66279317,0.000135,2]
[406972180,1772385037666,-300.0,0.00013673,2]
[406972181,1772385037674,-300.0,0.00013698,2]
[406972182,1772385037680,-1200.0,0.00013698,2]
[406972183,1772385037688,-189.13780759,0.00013699,2]
[406972184,1772385037694,-500.0,0.00013699,2]
[406972185,1772385037701,-156.0,0.00013699,2]
[406972186,1772385037710,-10097.478647,0.00013699,2]
[406972187,1772385037720,-1280.43263898,0.00013699,2]
[406972189,1772385037730,-500.0,0.00013699,2]
[406972191,1772385037740,-507.68926916,0.00013699,2]
[406972193,1772385037749,-500.0,0.00013699,2]
[406972195,1772385037759,-500.0,0.00013699,2]
[406972197,1772385037768,-150.0,0.000137,2]
[406972199,1772385037777,-268.70779154,0.00013724,2]
[406972201,1772385037788,-1000.0,0.00013821,2]
[406972204,1772385037799,-500.0,0.00013823,2]
[406972206,1772385037809,-500.0,0.00013823,2]
[406972208,1772385037818,-281.6029542,0.00013823,2]
[406972210,1772385037827,-500.0,0.00013823,2]
[406972212,1772385037836,-302.39126808,0.00013823,2]
[406972213,1772385037846,-500.0,0.00013823,2]
[406972214,1772385037855,-170.43045739,0.00013823,2]
[406972215,1772385037865,-190.95840507,0.00013823,2]
[406972216,1772385037874,-397.40283493,0.00013823,2]
[406972217,1772385037883,-2999.84154852,0.00013824,2]
[406972218,1772385038237,-38607.57409978,0.00013824,2]
[406972219,1772385038247,-902.06634725,0.00013824,3]
[406972220,1772385038256,-2264.857462,0.00014013,2]
[406972221,1772385038265,-600.0,0.00014221,2]
[406972222,1772385038273,-1000.0,0.00014247,2]
[406972223,1772385038283,-1000.0,0.00014247,2]
[406972224,1772385038292,-510.77474611,0.00014247,2]
[406972225,1772385038301,-1500.0,0.00014368,2]
[406972226,1772385038310,-2264.857462,0.00014603,2]
[406972227,1772385038320,-177.0,0.00014685,2]
[406972228,1772385038330,-900.0,0.00014768,2]
[406972229,1772385038339,-389.29296106,0.00014794,2]
[406972230,1772385038348,-1500.0,0.00014795,2]
[406972231,1772385038359,-1500.0,0.00014795,2]
[406972232,1772385038369,-315.86,0.00014816,2]
[406972233,1772385038378,-2000.0,0.00014916,2]
[406972234,1772385038388,-775.6077508,0.00015,2]
[406972235,1772385038399,-420.0,0.00015011,2]
[406972236,1772385038411,-1680.0,0.00015067,2]
[406972237,1772385038422,-195.567153,0.00015068,2]
[406972238,1772385038432,-268.7077915,0.00015192,2]
[406972239,1772385038443,-2264.857462,0.00015193,2]
[406972240,1772385038454,-1200.0,0.00015316,2]
[406972241,1772385038466,-2000.0,0.00015342,2]
[406972242,1772385038478,-2000.0,0.00015342,2]
[406972243,1772385038487,-2500.0,0.00015464,2]
[406972244,1772385038498,-500.0,0.00015672,2]
[406972245,1772385038509,-2264.857462,0.00015782,2]
[406972246,1772385038518,-844.65030303,0.00015864,2]
[406972247,1772385038528,-2500.0,0.0001589,2]
[406972248,1772385038537,-2500.0,0.0001589,2]
[406972249,1772385038547,-3000.0,0.00016012,2]
[406972250,1772385038556,-2264.857462,0.00016372,2]
[406972251,1772385038566,-603.40652067,0.00016438,2]
[406972252,1772385038575,-250.27638143,0.00016438,2]
[406972253,1772385038586,-3000.0,0.00016438,2]
[406972254,1772385038595,-3000.0,0.00016438,2]
[406972255,1772385038607,-587.0,0.00016451,2]
[406972256,1772385038620,-3000.0,0.0001656,2]
[406972257,1772385038630,-250.0,0.00016641,2]
[406972258,1772385038639,-268.7077915,0.0001666,2]
[406972259,1772385038648,-204.0,0.00016685,2]
[406972260,1772385038659,-2264.857462,0.00016962,2]
[406972261,1772385038668,-3500.0,0.00016986,2]
[406972262,1772385038677,-2809.46895902,0.00016986,2]
[406972263,1772385038687,-278.47408451,0.00018,2]
[406972264,1772385038697,-823.0,0.00018028,2]
[406972265,1772385038707,-268.7077915,0.00018128,2]
[406972266,1772385038718,-1388.0,0.00018421,2]
[406972267,1772385038728,-2184.0,0.00018421,2]
[406972268,1772385038738,-637.0,0.00018463,2]
[406972269,1772385038748,-431.0,0.00018463,2]
[406972270,1772385038758,-729.0,0.00018463,2]
[406972271,1772385038768,-231.0,0.00018685,2]
[406972272,1772385038777,-164.97595852,0.00018991,2]
[406972273,1772385038785,-150.0,0.00018993,2]
[406972274,1772385038794,-500.0,0.0001912,30]
[406972275,1772385038804,-500.0,0.0001912,30]
[406972276,1772385038813,-187.78006525,0.00019202,2]
[406972277,1772385038823,-194.72792766,0.00019202,2]
[406972278,1772385038833,-201.93286099,0.00019202,2]
[406972279,1772385038843,-209.40437684,0.00019202,2]
[406972280,1772385038853,-217.15233878,0.00019202,2]
[406972281,1772385038863,-225.18697532,0.00019202,2]
[406972282,1772385038872,-233.51889341,0.00019202,2]
[406972283,1772385038883,-242.15909246,0.00019202,2]
[406972284,1772385038893,-251.11897888,0.00019202,2]
[406972285,1772385038903,-260.4103811,0.00019202,2]
[406972286,1772385038912,-270.0455652,0.00019202,2]
[406972287,1772385038922,-280.03725112,0.00019202,2]
[406972288,1772385038931,-290.39862941,0.00019202,2]
[406972289,1772385038940,-500.0,0.00019202,2]
[406972290,1772385038949,-301.1433787,0.00019202,2]
[406972291,1772385038959,-500.0,0.00019202,2]
[406972292,1772385038968,-500.0,0.00019202,2]
[406972293,1772385038977,-500.0,0.00019202,2]
[406972294,1772385038987,-1957.856,0.00019202,2]
[406972295,1772385038996,-250.0,0.00019202,2]
[406972296,1772385039006,-250.0,0.00019202,2]
[406972297,1772385039015,-385.20316875,0.00019202,2]
[406972298,1772385039024,-715.53972549,0.0001922,2]
[406972299,1772385039033,-2030.296672,0.00019257,2]
[406972300,1772385039042,-334.0,0.00019273,2]
[406972301,1772385039051,-2105.41764886,0.00019312,2]
[406972302,1772385039062,-3638.56122107,0.00019365,2]
[406972303,1772385039070,-2183.31810187,0.00019367,2]
[406972304,1772385039080,-2264.10087164,0.00019422,2]
[406972305,1772385039089,-2347.87260389,0.00019477,2]